bitfinex/quotes_BTCUSD_20230103
["timestamp","ask_amount","ask_price","bid_price","bid_amount"]
[1672725800842,2.62699085,16777.0,16776.0,0.7]
[1672725801068,2.65523456,16777.0,16776.0,0.7]
[1672725801307,2.05918056,16777.0,16776.0,0.7]
[1672725801544,2.67034923,16777.0,16776.0,0.7]
[1672725801795,2.06718056,16777.0,16776.0,0.707]
[1672725802009,2.05918056,16777.0,16776.0,0.7]
[1672725802238,2.78316088,16777.0,16776.0,0.707]
[1672725802467,1.88316088,16777.0,16776.0,0.707]
[1672725802973,0.04220461,16777.0,16776.0,3.89755391]
[1672725803231,0.04220461,16777.0,16776.0,3.86677575]
[1672725803470,0.03420461,16777.0,16776.0,3.61971573]
[1672725803714,0.03420461,16777.0,16776.0,3.62671573]
[1672725803955,0.04220461,16777.0,16776.0,3.62671573]
[1672725804442,0.04220461,16777.0,16776.0,3.09789168]
[1672725804683,0.03420461,16777.0,16776.0,3.09089168]
[1672725804912,0.03520461,16777.0,16776.0,3.23089168]
[1672725805400,0.03420461,16777.0,16776.0,3.09089168]
[1672725805642,0.03520461,16777.0,16776.0,3.22989168]
[1672725806359,0.0001,16780.0,16778.0,0.5]
[1672725806592,0.0001,16780.0,16779.0,2.32352073]
[1672725807090,0.00605984,16780.0,16779.0,2.82352073]
[1672725807346,0.00605984,16780.0,16779.0,3.52352073]
[1672725807861,0.00605984,16780.0,16779.0,3.66652073]
[1672725808597,0.00605984,16780.0,16779.0,4.29663434]
[1672725810036,0.00605984,16780.0,16779.0,4.47570373]
[1672725810285,0.02824371,16783.0,16780.0,0.51211968]
[1672725810526,0.02824371,16783.0,16782.0,0.91550089]
[1672725810778,0.02824371,16783.0,16782.0,2.22753773]
[1672725811030,0.03420248,16783.0,16782.0,1.72753773]
[1672725811273,0.002201,16785.0,16782.0,2.55664553]
[1672725811508,8.42925579,16790.0,16784.0,0.41550089]
[1672725811509,8.23582663,16790.0,16784.0,0.41550089]
[1672725811742,0.595734,16786.0,16785.0,0.85821659]
[1672725811965,0.9,16788.0,16784.0,1.03365746]
[1672725812193,0.595656,16789.0,16785.0,0.24006002]
[1672725812447,0.570708,16787.0,16785.0,0.94006002]
[1672725812692,0.33765021,16786.0,16785.0,0.7]
[1672725812923,0.34615021,16786.0,16785.0,1.31865882]
[1672725813390,0.33765021,16786.0,16785.0,1.31865882]
[1672725814116,0.98679812,16786.0,16785.0,0.70006365]
[1672725814351,0.30237526,16786.0,16785.0,0.84306365]
[1672725814599,0.30237526,16786.0,16785.0,0.843]
[1672725814879,0.00595771,16786.0,16785.0,1.45749012]
[1672725815115,0.00595771,16786.0,16785.0,2.0608614]
[1672725815350,1.71404629,16788.0,16786.0,0.68010534]
[1672725815585,0.01445735,16787.0,16786.0,2.6421056]
[1672725815843,0.01445735,16787.0,16786.0,2.41306865]
[1672725816090,0.01445735,16787.0,16786.0,0.7]
[1672725816091,0.5290273,16787.0,16786.0,0.7]
[1672725816316,2.0204253,16787.0,16786.0,0.7]
[1672725816561,2.03837725,16787.0,16786.0,0.7]
[1672725816818,2.03837725,16787.0,16786.0,0.774]
[1672725817299,2.53837725,16787.0,16786.0,0.774]
[1672725817546,2.64537725,16787.0,16786.0,0.774]
[1672725817770,2.03837725,16787.0,16786.0,0.774]
[1672725818005,2.03837725,16787.0,16786.0,0.7]
[1672725818240,2.03937725,16787.0,16786.0,0.7]
[1672725818773,9.53937725,16787.0,16786.0,0.7]
[1672725819240,9.84228719,16787.0,16786.0,0.7]
[1672725819491,10.65307725,16787.0,16786.0,0.7]
[1672725819980,10.65207725,16787.0,16786.0,0.7]
[1672725820469,10.1375073,16787.0,16786.0,0.7]
[1672725820717,9.8945815,16787.0,16786.0,0.94906002]
[1672725820947,9.83827092,16787.0,16786.0,0.709]
[1672725821203,9.2435073,16787.0,16786.0,0.709]
[1672725821428,9.2375073,16787.0,16786.0,0.7]
[1672725821903,9.77418363,16787.0,16786.0,0.701]
[1672725823589,9.66718363,16787.0,16786.0,0.701]
[1672725824315,9.66718363,16787.0,16786.0,1.11650089]
[1672725824794,9.66706465,16787.0,16786.0,1.11656454]
[1672725825276,9.66706465,16787.0,16786.0,1.11650089]
[1672725825760,9.11943637,16787.0,16786.0,1.11650089]
[1672725826027,9.01273637,16787.0,16786.0,1.11656454]
[1672725826242,9.01273637,16787.0,16786.0,1.11650089]
[1672725826713,9.01273637,16787.0,16786.0,0.701]
[1672725827432,9.62476374,16787.0,16786.0,0.701]
[1672725828191,10.22516601,16787.0,16786.0,0.701]
[1672725828432,11.24931796,16787.0,16786.0,0.701]
[1672725829863,10.64891569,16787.0,16786.0,8.701]
[1672725830642,10.71122335,16787.0,16786.0,8.701]
[1672725830833,10.20619598,16787.0,16786.0,8.701]
[1672725831075,10.50405598,16787.0,16786.0,8.701]
[1672725831649,10.84007197,16787.0,16786.0,8.701]
[1672725835258,11.09580378,16787.0,16786.0,8.701]
[1672725836043,9.42687197,16787.0,16786.0,8.94106002]
[1672725836301,9.36456431,16787.0,16786.0,8.701]
[1672725836566,9.47156431,16787.0,16786.0,8.701]
[1672725837804,9.77156431,16787.0,16786.0,8.701]
[1672725841144,9.66456431,16787.0,16786.0,8.701]
[1672725841638,10.1092257,16787.0,16786.0,8.701]
[1672725843236,9.66456431,16787.0,16786.0,8.701]
[1672725843997,9.77156431,16787.0,16786.0,9.11650089]
[1672725844249,10.30357674,16787.0,16786.0,9.11650089]
[1672725844499,9.77156431,16787.0,16786.0,9.11650089]
[1672725844843,10.30357674,16787.0,16786.0,9.11650089]
[1672725844995,9.77156431,16787.0,16786.0,9.11650089]
[1672725846254,10.30357674,16787.0,16786.0,9.11650089]
[1672725846504,9.77156431,16787.0,16786.0,9.11650089]
[1672725847244,10.30357674,16787.0,16786.0,9.11650089]
[1672725847762,10.30357674,16787.0,16786.0,9.11638703]
[1672725847763,10.90397901,16787.0,16786.0,9.11638703]
[1672725848009,11.63463612,16787.0,16786.0,8.70088614]
[1672725848526,11.11005804,16787.0,16786.0,8.29085245]
[1672725848779,11.21046031,16787.0,16786.0,6.71700345]
[1672725849000,11.85007751,16787.0,16786.0,5.10261745]
[1672725849287,11.71046031,16787.0,16786.0,3.13266045]
[1672725849545,11.71046031,16787.0,16786.0,1.92133645]
[1672725849803,0.5,16786.0,16784.0,0.41550089]
[1672725850072,3.65405664,16785.0,16784.0,0.41550089]
[1672725850308,4.55405664,16785.0,16784.0,0.41550089]
[1672725850626,5.22353102,16785.0,16784.0,1.11550089]
[1672725850833,12.07796594,16785.0,16784.0,1.11550089]
[1672725851094,12.71370941,16785.0,16784.0,1.11550089]
[1672725851358,12.70370941,16785.0,16784.0,1.11550089]
[1672725851603,12.23250277,16785.0,16784.0,1.11550089]
[1672725852366,11.5967593,16785.0,16784.0,1.11550089]
[1672725852618,11.5967593,16785.0,16784.0,0.7]
[1672725852877,11.5706593,16785.0,16784.0,0.7]
[1672725853115,12.1506593,16785.0,16784.0,0.706]
[1672725853380,0.5,16784.0,16782.0,0.41550089]
[1672725853631,3.65436928,16783.0,16782.0,0.41550089]
[1672725854166,3.16429135,16783.0,16782.0,0.41550089]
[1672725854379,3.1822433,16783.0,16782.0,0.41550089]
[1672725854704,11.5822433,16783.0,16782.0,0.42150089]
[1672725854898,11.5822433,16783.0,16782.0,0.41550089]
[1672725855388,12.0822433,16783.0,16782.0,0.41556089]
[1672725855694,12.14455313,16783.0,16782.0,0.41556089]
[1672725855939,12.23055313,16783.0,16782.0,0.42156089]
[1672725856134,12.73055313,16783.0,16782.0,0.42156089]
[1672725856384,11.6682433,16783.0,16782.0,0.00606]
[1672725856649,12.1682433,16783.0,16782.0,0.00606]
[1672725857421,0.5,16782.0,16780.0,0.42796843]
[1672725857677,2.905848,16781.0,16780.0,1.14760285]
[1672725857918,2.905848,16781.0,16780.0,0.42796843]
[1672725858174,11.01409635,16781.0,16780.0,0.42796843]
[1672725858497,10.71409635,16781.0,16780.0,0.42796843]
[1672725858681,10.50039635,16781.0,16780.0,0.42796843]
[1672725858922,10.51639635,16781.0,16780.0,0.43096843]
[1672725859927,10.81639635,16781.0,16780.0,0.43096843]
[1672725861194,12.07188291,16781.0,16780.0,0.43096843]
[1672725861442,11.76755191,16781.0,16780.0,0.43096843]
[1672725861933,9.91410535,16781.0,16780.0,0.67102845]
[1672725862196,10.51606543,16781.0,16780.0,1.04739292]
[1672725862441,9.91410535,16781.0,16780.0,1.08303692]
[1672725862684,9.91227879,16781.0,16780.0,1.08303692]
[1672725863680,10.21227879,16781.0,16780.0,1.08303692]
[1672725864199,10.21227879,16781.0,16780.0,1.78303692]
[1672725865134,10.81423887,16781.0,16780.0,1.78303692]
[1672725865678,11.41464114,16781.0,16780.0,1.78303692]
[1672725866177,1.15300085,16781.0,16780.0,2.14349745]
[1672725866438,1.0638002,16781.0,16780.0,2.51882343]
[1672725867024,1.0610002,16781.0,16780.0,1.90343743]
[1672725867211,2.01363198,16781.0,16780.0,1.90043743]
[1672725867456,0.95858913,16781.0,16780.0,1.90043743]
[1672725867722,0.81660798,16781.0,16780.0,1.96043743]
[1672725867957,0.81660798,16781.0,16780.0,3.07582343]
[1672725868270,0.81660798,16781.0,16780.0,2.57582343]
[1672725868462,0.80860798,16781.0,16780.0,2.51582343]
[1672725868999,0.80860798,16781.0,16780.0,3.19817848]
[1672725869546,0.81660798,16781.0,16780.0,3.25817848]
[1672725869763,0.81660798,16781.0,16780.0,2.84267759]
[1672725870014,1.41251998,16781.0,16780.0,3.25817848]
[1672725870272,1.3558002,16781.0,16780.0,3.25817848]
[1672725870521,1.3558002,16781.0,16780.0,2.64279248]
[1672725871269,1.3558002,16781.0,16780.0,3.25817848]
[1672725871599,2.04091285,16781.0,16780.0,2.53579248]
[1672725871801,2.04941285,16781.0,16780.0,2.53515922]
[1672725872545,0.01395735,16781.0,16780.0,2.19986419]
[1672725872800,0.01395735,16781.0,16780.0,3.07519017]
[1672725873047,0.01395735,16781.0,16780.0,2.57519017]
[1672725873289,0.37077038,16781.0,16780.0,2.57519017]
[1672725875048,0.01395735,16781.0,16780.0,2.57519017]
[1672725875572,0.37077038,16781.0,16780.0,2.57519017]
[1672725876086,0.01395735,16781.0,16780.0,2.57519017]
[1672725876829,0.01395735,16781.0,16780.0,3.07519017]
[1672725877323,0.01395735,16781.0,16780.0,3.12511736]
[1672725877574,0.37077038,16781.0,16780.0,3.12511736]
[1672725877820,0.37077038,16781.0,16780.0,2.57519017]
[1672725878330,0.37077038,16781.0,16780.0,3.13032876]
[1672725878844,0.37077038,16781.0,16780.0,2.51494276]
[1672725879105,1.11681937,16781.0,16780.0,2.51494276]
[1672725879837,1.11681937,16781.0,16780.0,2.47929876]
[1672725880091,1.95183034,16781.0,16780.0,2.47929876]
[1672725880344,1.50578135,16781.0,16780.0,2.37229876]
[1672725882160,2.04091285,16781.0,16780.0,2.37229876]
[1672725882345,1.50578135,16781.0,16780.0,2.37229876]
[1672725883104,2.04091285,16781.0,16780.0,2.37229876]
[1672725883616,2.54091285,16781.0,16780.0,1.18796843]
[1672725883872,3.51124755,16781.0,16780.0,1.18796843]
[1672725884155,2.97611605,16781.0,16780.0,1.18796843]
[1672725884384,2.59300621,16781.0,16780.0,1.18796843]
[1672725884650,2.09300621,16781.0,16780.0,1.18796843]
[1672725887179,2.69496629,16781.0,16780.0,1.18796843]
[1672725888922,2.11624143,16781.0,16780.0,1.18796843]
[1672725889453,1.51428135,16781.0,16780.0,1.18796843]
[1672725890218,2.11624143,16781.0,16780.0,1.18796843]
[1672725890489,3.00478804,16781.0,16780.0,0.77246754]
[1672725890724,1.80774143,16781.0,16780.0,1.58805796]
[1672725891011,0.54962415,16781.0,16780.0,2.26066584]
[1672725891225,0.01395735,16781.0,16780.0,2.87598645]
[1672725891464,0.01395735,16781.0,16780.0,2.8761132]
[1672725892726,0.01395735,16781.0,16780.0,3.29161409]
[1672725892974,0.01395735,16781.0,16780.0,2.8761132]
[1672725893217,0.01395735,16781.0,16780.0,3.29161409]
[1672725894720,0.01395735,16781.0,16780.0,3.2795598]
[1672725894967,1.74144815,16781.0,16780.0,2.45084705]
[1672725895223,2.04144815,16781.0,16780.0,2.45084705]
[1672725895488,2.04144815,16781.0,16780.0,2.03534616]
[1672725895743,2.04144815,16781.0,16780.0,2.45084705]
[1672725897743,0.01395735,16781.0,16780.0,1.87531665]
[1672725898018,0.01395735,16781.0,16780.0,2.55422172]
[1672725898568,0.46049219,16781.0,16780.0,3.27660772]
[1672725899027,0.01395735,16781.0,16780.0,2.66122172]
[1672725899285,0.01395735,16781.0,16780.0,2.24572083]
[1672725899517,0.01395735,16781.0,16780.0,2.66122172]
[1672725899791,0.01395735,16781.0,16780.0,3.27660772]
[1672725900256,0.01395735,16781.0,16780.0,2.59770265]
[1672725900510,0.81787693,16781.0,16780.0,2.70390265]
[1672725901530,0.37125011,16781.0,16780.0,2.70390265]
[1672725902040,0.81787693,16781.0,16780.0,2.70390265]
[1672725903814,0.81787693,16781.0,16780.0,3.3057711]
[1672725904075,0.81787693,16781.0,16780.0,2.70390265]
[1672725904332,0.81787693,16781.0,16780.0,3.36219335]
[1672725905324,0.46058417,16781.0,16780.0,2.74680735]
[1672725905604,0.46058417,16781.0,16780.0,3.36219335]
[1672725906319,0.01395735,16781.0,16780.0,3.36219335]
[1672725907059,0.46080683,16781.0,16780.0,3.36219335]
[1672725907549,0.01395735,16781.0,16780.0,3.36219335]
[1672725908548,0.01395735,16781.0,16780.0,2.74680735]
[1672725908798,0.01395735,16781.0,16780.0,1.94033945]
[1672725909053,0.01395735,16781.0,16780.0,2.63980735]
[1672725909318,2.04144815,16781.0,16780.0,1.94033945]
[1672725910600,2.04144815,16781.0,16780.0,1.41863856]
[1672725910850,2.04144815,16781.0,16780.0,2.53360735]
[1672725911620,2.6430277,16781.0,16780.0,1.83413945]
[1672725911863,2.1073609,16781.0,16780.0,1.17584875]
[1672725912108,2.1073609,16781.0,16780.0,0.76034786]
[1672725912374,2.70932098,16781.0,16780.0,0.76034786]
[1672725913108,2.1158609,16781.0,16780.0,0.76034786]
[1672725914099,3.0403276,16781.0,16780.0,0.76034786]
[1672725914342,2.43703779,16781.0,16780.0,0.76034786]
[1672725914583,2.1158609,16781.0,16780.0,0.76034786]
[1672725915840,2.71910209,16781.0,16780.0,0.76027339]
[1672725917843,2.1158609,16781.0,16780.0,0.76027339]
[1672725921122,2.6158609,16781.0,16780.0,0.76027339]
[1672725921375,2.95333231,16781.0,16780.0,0.76027339]
[1672725921862,2.6158609,16781.0,16780.0,0.76027339]
[1672725922577,2.1158609,16781.0,16780.0,0.76027339]
[1672725923115,1.21298155,16781.0,16780.0,1.4158343]
[1672725923365,1.14590625,16781.0,16780.0,2.59053857]
[1672725923630,1.14590625,16781.0,16780.0,3.20592457]
[1672725924140,0.60986935,16781.0,16780.0,3.20592457]
[1672725926658,0.60486935,16781.0,16780.0,3.20592457]
[1672725927675,1.14090625,16781.0,16780.0,3.20592457]
[1672725927928,1.44090625,16781.0,16780.0,2.59053857]
[1672725928931,1.44090625,16781.0,16780.0,3.20592457]
[1672725929182,1.43938625,16781.0,16780.0,3.20592457]
[1672725929936,1.43938625,16781.0,16780.0,2.59053857]
[1672725930915,1.43938625,16781.0,16780.0,3.20592457]
[1672725931403,1.43938625,16781.0,16780.0,2.59053857]
[1672725933381,2.03529825,16781.0,16780.0,2.59053857]
[1672725933640,2.03529825,16781.0,16780.0,2.63070502]
[1672725934149,1.49926135,16781.0,16780.0,2.63070502]
[1672725934648,1.49926135,16781.0,16780.0,1.93123712]
[1672725936445,0.00743735,16781.0,16780.0,2.87076504]
[1672725936702,0.45414388,16781.0,16780.0,3.46009102]
[1672725936948,0.00743735,16781.0,16780.0,3.46009102]
[1672725937716,0.45414906,16781.0,16780.0,3.46009102]
[1672725938463,0.45266906,16781.0,16780.0,3.29309102]
[1672725938732,0.45266906,16781.0,16780.0,3.43309102]
[1672725939480,0.00595735,16781.0,16780.0,3.29309102]
[1672725939731,0.45264337,16781.0,16780.0,3.43409102]
[1672725939984,0.45264337,16781.0,16780.0,3.29309102]
[1672725940235,0.00595735,16781.0,16780.0,3.43309102]
[1672725940738,0.45262862,16781.0,16780.0,3.43309102]
[1672725940957,0.45262862,16781.0,16780.0,2.81770502]
[1672725941782,0.45262862,16781.0,16780.0,3.29309102]
[1672725942030,0.45262862,16781.0,16780.0,3.43409102]
[1672725942271,0.45262862,16781.0,16780.0,3.29309102]
[1672725942515,0.45262862,16781.0,16780.0,3.43309102]
[1672725942771,0.45262862,16781.0,16780.0,3.29309102]
[1672725944016,0.45262862,16781.0,16780.0,2.67770502]
[1672725944781,0.00595735,16781.0,16780.0,2.67770502]
[1672725945030,0.00595735,16781.0,16780.0,3.43409102]
[1672725945276,0.45267522,16781.0,16780.0,3.29309102]
[1672725945524,0.45267522,16781.0,16780.0,2.73309102]
[1672725945754,0.45267522,16781.0,16780.0,2.59309102]
[1672725946062,0.45267522,16781.0,16780.0,2.73409102]
[1672725946304,0.00595735,16781.0,16780.0,1.97770502]
[1672725946547,0.00595735,16781.0,16780.0,2.11770502]
[1672725946794,0.00595735,16781.0,16780.0,1.97770502]
[1672725947043,0.00595735,16781.0,16780.0,2.10340863]
[1672725947298,2.02051226,16781.0,16780.0,1.29694073]
[1672725947547,2.02054433,16781.0,16780.0,1.99640863]
[1672725947798,2.02054433,16781.0,16780.0,1.85540863]
[1672725948052,1.43798745,16781.0,16780.0,1.99540863]
[1672725948740,1.43798745,16781.0,16780.0,1.85540863]
[1672725949275,1.43798745,16781.0,16780.0,2.47662219]
[1672725953097,1.43798745,16781.0,16780.0,2.47651395]
[1672725953847,1.13798745,16781.0,16780.0,2.47651395]
[1672725954591,1.13798745,16781.0,16780.0,2.40751395]
[1672725955113,1.13798745,16781.0,16780.0,2.55051395]
[1672725956358,1.43798745,16781.0,16780.0,2.55051395]
[1672725958830,1.13798745,16781.0,16780.0,2.55051395]
[1672725959838,1.43798745,16781.0,16780.0,2.55051395]
[1672725960345,1.13798745,16781.0,16780.0,2.55051395]
[1672725960581,1.13798745,16781.0,16780.0,1.85051395]
[1672725961829,1.43798745,16781.0,16780.0,2.55051395]
[1672725962325,1.13798745,16781.0,16780.0,2.55051395]
[1672725962816,1.13798745,16781.0,16780.0,3.16589995]
[1672725963306,1.13798745,16781.0,16780.0,2.55051395]
[1672725965610,1.13798745,16781.0,16780.0,3.16589995]
[1672725966128,1.13798745,16781.0,16780.0,2.55051395]
[1672725967109,1.13798745,16781.0,16780.0,2.46643205]
[1672725967334,1.13798745,16781.0,16780.0,2.55051395]
[1672725967874,1.13798745,16781.0,16780.0,1.99830039]
[1672725967875,1.49778135,16781.0,16780.0,1.99830039]
[1672725968172,1.49778135,16781.0,16780.0,0.8833316]
[1672725968431,2.10089355,16781.0,16780.0,1.5827995]
[1672725968675,1.49778135,16781.0,16780.0,1.5827995]
[1672725968968,2.10089355,16781.0,16780.0,1.5827995]
[1672725970479,1.49778135,16781.0,16780.0,1.5827995]
[1672725972523,1.49778135,16781.0,16780.0,2.11897003]
[1672725973798,1.49778135,16781.0,16780.0,2.11888218]
[1672725974810,2.10089355,16781.0,16780.0,2.11888218]
[1672725975058,2.10089355,16781.0,16780.0,0.88324375]
[1672725976335,2.77702614,16781.0,16780.0,0.88324375]
[1672725977100,1.20498155,16781.0,16780.0,1.82277167]
[1672725977355,1.13868789,16781.0,16780.0,2.77911243]
[1672725977869,1.13868789,16781.0,16780.0,2.16372643]
[1672725978655,1.13868789,16781.0,16780.0,2.27072643]
[1672725980946,0.54277589,16781.0,16780.0,2.41209765]
[1672725981199,0.00595735,16781.0,16780.0,3.0773405]
[1672725981471,0.45325515,16781.0,16780.0,3.06797282]
[1672725981762,0.45325515,16781.0,16780.0,2.41209765]
[1672725982026,0.81108855,16781.0,16780.0,2.41209765]
[1672725983002,0.81108855,16781.0,16780.0,2.81209765]
[1672725984063,0.81108855,16781.0,16780.0,2.41209765]
[1672725985335,0.80960855,16781.0,16780.0,2.41209765]
[1672725986349,0.80960855,16781.0,16780.0,2.51799765]
[1672725986851,0.36379075,16781.0,16780.0,2.51799765]
[1672725987354,0.36379075,16781.0,16780.0,2.51806447]
[1672725987861,0.36379075,16781.0,16780.0,3.15106539]
[1672725989645,0.36379075,16781.0,16780.0,3.15099857]
[1672725989646,0.00595735,16781.0,16780.0,3.15099857]
[1672725990673,0.00595735,16781.0,16780.0,2.99109857]
[1672725992943,0.45291737,16781.0,16780.0,2.99109857]
[1672725995737,0.30595735,16781.0,16780.0,2.37571257]
[1672725996020,0.30595735,16781.0,16780.0,2.21571257]
[1672725996275,0.84277589,16781.0,16780.0,2.21571257]
[1672725997093,1.73459989,16781.0,16780.0,2.21571257]
[1672725997306,1.43868789,16781.0,16780.0,2.21571257]
[1672725997848,0.90186935,16781.0,16780.0,2.21571257]
[1672725998099,1.43868789,16781.0,16780.0,2.21571257]
[1672725998401,1.43653717,16781.0,16780.0,2.21571257]
[1672725998633,1.43653717,16781.0,16780.0,2.37571257]
[1672725999397,1.43653717,16781.0,16780.0,2.37996305]
[1672725999901,2.03244917,16781.0,16780.0,2.37996305]
[1672726001190,2.03244917,16781.0,16780.0,2.34996305]
[1672726001982,1.73244917,16781.0,16780.0,2.34996305]
[1672726002288,1.19563063,16781.0,16780.0,2.34996305]
[1672726003501,1.19563063,16781.0,16780.0,2.34571257]
[1672726004059,1.19563063,16781.0,16780.0,8.34571257]
[1672726004330,1.19563063,16781.0,16780.0,8.96109857]
[1672726007570,1.19563063,16781.0,16780.0,8.95790843]
[1672726008310,1.19563063,16781.0,16780.0,8.25790843]
[1672726008559,1.73244917,16781.0,16780.0,8.09790843]
[1672726009052,2.03244917,16781.0,16780.0,9.21340932]
[1672726009303,2.03244917,16781.0,16780.0,8.51713156]
[1672726010152,2.03244917,16781.0,16780.0,8.10163067]
[1672726010400,2.03244917,16781.0,16780.0,8.51713156]
[1672726010920,2.03244917,16781.0,16780.0,7.90174556]
[1672726011177,1.49563063,16781.0,16780.0,7.90174556]
[1672726011426,1.49563063,16781.0,16780.0,7.26874464]
[1672726011950,2.04195986,16781.0,16780.0,6.85324375]
[1672726012180,3.31460745,16781.0,16780.0,6.85324375]
[1672726012465,2.37015986,16781.0,16780.0,6.85324375]
[1672726012697,2.98402381,16781.0,16780.0,6.85324375]
[1672726014029,2.98402381,16781.0,16780.0,6.71024375]
[1672726014820,2.98402381,16781.0,16780.0,6.01024375]
[1672726015306,2.98402381,16781.0,16780.0,6.01124375]
[1672726015307,3.45801679,16781.0,16780.0,6.01124375]
[1672726015561,3.60433116,16781.0,16780.0,5.62526275]
[1672726016309,2.91168756,16781.0,16780.0,5.62392152]
[1672726016560,3.60185681,16781.0,16780.0,5.62392152]
[1672726016803,3.13786383,16781.0,16780.0,5.62392152]
[1672726017561,2.44769458,16781.0,16780.0,5.62392152]
[1672726018098,2.94769458,16781.0,16780.0,5.62392152]
[1672726018352,3.4647865,16781.0,16780.0,5.62392152]
[1672726018598,4.09568006,16781.0,16780.0,5.62392152]
[1672726019091,3.49527779,16781.0,16780.0,5.62392152]
[1672726021095,10.47818587,16781.0,16780.0,5.62392152]
[1672726022334,11.00388412,16781.0,16780.0,5.62392152]
[1672726023322,10.98593217,16781.0,16780.0,5.62392152]
[1672726023573,11.02064856,16781.0,16780.0,5.62392152]
[1672726023814,11.06063619,16781.0,16780.0,5.62392152]
[1672726024078,10.47818587,16781.0,16780.0,5.62392152]
[1672726024824,10.63658587,16781.0,16780.0,5.29556952]
[1672726025080,10.63658587,16781.0,16780.0,4.56606552]
[1672726025333,11.23698814,16781.0,16780.0,2.21593652]
[1672726025591,12.1781319,16781.0,16780.0,1.14411352]
[1672726025851,12.1781319,16781.0,16780.0,1.05231652]
[1672726026369,13.1377319,16781.0,16780.0,1.05231652]
[1672726027716,13.1377319,16781.0,16780.0,0.36342752]
[1672726027897,13.1377319,16781.0,16778.0,0.00051483]
[1672726027898,0.5,16780.0,16778.0,0.00051483]
[1672726028157,1.9853,16779.0,16778.0,0.00051483]
[1672726028430,3.10510639,16779.0,16778.0,0.00051483]
[1672726028671,10.61106374,16779.0,16778.0,0.00051483]
[1672726028926,12.3931413,16779.0,16778.0,0.00051483]
[1672726029174,12.99354357,16779.0,16778.0,0.02451483]
[1672726029418,12.09354357,16779.0,16778.0,0.02451483]
[1672726029666,12.99354357,16779.0,16778.0,0.02451483]
[1672726029922,0.5,16778.0,16776.0,0.00051483]
[1672726030213,3.61462443,16777.0,16776.0,0.00051483]
[1672726030416,3.44017844,16777.0,16776.0,0.00051483]
[1672726030656,4.36408774,16777.0,16776.0,0.00051483]
[1672726030921,5.42404617,16777.0,16776.0,0.00051483]
[1672726031446,5.48304617,16777.0,16776.0,0.00851483]
[1672726031957,5.48277958,16777.0,16776.0,0.00851483]
[1672726032469,5.48277958,16777.0,16776.0,8.3e-07]
[1672726032984,4.75726714,16777.0,16776.0,8.3e-07]
[1672726033248,4.1556253,16777.0,16776.0,8.3e-07]
[1672726034368,4.69000616,16777.0,16776.0,8.3e-07]
[1672726034877,5.27963556,16777.0,16776.0,8.3e-07]
[1672726035128,4.74525019,16777.0,16776.0,8.3e-07]
[1672726035568,5.34565246,16777.0,16776.0,8.3e-07]
[1672726035569,4.74525019,16777.0,16776.0,8.3e-07]
[1672726035827,5.27963167,16777.0,16776.0,8.3e-07]
[1672726037084,12.77963167,16777.0,16776.0,8.3e-07]
[1672726037334,11.87963167,16777.0,16776.0,8.3e-07]
[1672726039105,12.45963167,16777.0,16776.0,8.3e-07]
[1672726039353,11.87000678,16777.0,16776.0,8.3e-07]
[1672726039603,12.09602757,16777.0,16776.0,8.3e-07]
[1672726040361,12.6039883,16777.0,16776.0,8.3e-07]
[1672726040617,13.13816246,16777.0,16776.0,8.3e-07]
[1672726040866,12.63020173,16777.0,16776.0,8.3e-07]
[1672726041641,13.28312768,16777.0,16776.0,8.3e-07]
[1672726043101,12.74895352,16777.0,16776.0,8.3e-07]
[1672726043845,12.81130539,16777.0,16776.0,8.3e-07]
[1672726044606,12.44561567,16777.0,16776.0,8.3e-07]
[1672726044869,11.32286153,16777.0,16776.0,8.3e-07]
[1672726046385,11.62286153,16777.0,16776.0,8.3e-07]
[1672726048674,11.62286153,16777.0,16776.0,0.41550172]
[1672726049160,10.4356253,16777.0,16776.0,0.41550172]
[1672726049408,11.63766941,16777.0,16776.0,0.41550172]
[1672726049647,11.63766941,16777.0,16776.0,0.45217121]
[1672726050657,12.53766941,16777.0,16776.0,0.45217121]
[1672726050902,11.63766941,16777.0,16776.0,0.45217121]
[1672726051152,12.53766941,16777.0,16776.0,0.45217121]
[1672726052169,11.93602757,16777.0,16776.0,0.45217121]
[1672726053167,12.64964591,16777.0,16776.0,0.45217121]
[1672726053411,11.74964591,16777.0,16776.0,0.45217121]
[1672726053693,12.15717879,16777.0,16776.0,0.45217121]
[1672726055433,12.15717879,16777.0,16776.0,0.03667032]
[1672726055694,12.15717879,16777.0,16776.0,0.01374532]
[1672726059202,12.65717879,16777.0,16776.0,0.01374532]
[1672726059695,0.5,16776.0,16775.0,0.41550089]
[1672726059954,2.63990322,16776.0,16775.0,0.41550089]
[1672726060209,2.64586057,16776.0,16775.0,0.41550089]
[1672726060475,2.64586057,16776.0,16774.0,0.00129812]
[1672726060737,1.87445735,16775.0,16774.0,0.00129812]
[1672726060979,2.0517093,16775.0,16774.0,0.00129812]
[1672726061227,2.65211157,16775.0,16774.0,0.00129812]
[1672726061484,2.65211157,16775.0,16774.0,1.2e-07]
[1672726061733,2.65211157,16775.0,16772.0,0.0017619]
[1672726061983,2.38085962,16775.0,16774.0,0.007]
[1672726062229,2.38085962,16775.0,16772.0,0.0017619]
[1672726062230,0.5,16774.0,16772.0,0.0017619]
[1672726062480,8.5703658,16773.0,16772.0,0.0017619]
[1672726062728,8.5942751,16773.0,16772.0,0.0017619]
[1672726063250,8.5942751,16773.0,16772.0,0.0087619]
[1672726063492,8.5942751,16773.0,16772.0,0.0017619]
[1672726063745,10.9790591,16773.0,16772.0,0.0017619]
[1672726063987,3.4950591,16773.0,16772.0,0.0027619]
[1672726064748,4.08835738,16773.0,16772.0,0.0027619]
[1672726065587,4.68875965,16773.0,16772.0,0.0027619]
[1672726066260,4.08589385,16773.0,16772.0,0.0027619]
[1672726066790,3.48549158,16773.0,16772.0,0.0027619]
[1672726067739,3.3921933,16773.0,16772.0,0.0027619]
[1672726067982,11.52921055,16773.0,16772.0,0.0027619]
[1672726068229,11.1902933,16773.0,16772.0,0.0027619]
[1672726070440,11.87739404,16773.0,16772.0,0.0027619]
[1672726070694,11.79069557,16773.0,16772.0,0.0027619]
[1672726070937,12.47447404,16773.0,16772.0,0.0027619]
[1672726071207,11.79069557,16773.0,16772.0,0.0027619]
[1672726073461,12.39480616,16773.0,16772.0,0.0027619]
[1672726073711,11.79069557,16773.0,16772.0,0.0027619]
[1672726074707,12.37987212,16773.0,16772.0,0.0027619]
[1672726077496,11.48136985,16773.0,16772.0,0.0027619]
[1672726078498,11.32236985,16773.0,16772.0,0.0027619]
[1672726082041,11.02236985,16773.0,16772.0,0.0027619]
[1672726082293,3.02236985,16773.0,16772.0,0.0027619]
[1672726082813,10.52236985,16773.0,16772.0,0.0027619]
[1672726083580,10.82236985,16773.0,16772.0,0.0027619]
[1672726083849,3.32236985,16773.0,16772.0,0.0027619]
[1672726084084,2.7331933,16773.0,16772.0,0.52486158]
[1672726084404,10.21524135,16773.0,16772.0,0.52486158]
[1672726084859,10.81857586,16773.0,16772.0,0.52486158]
[1672726085112,10.21387986,16773.0,16772.0,0.68476158]